fUST/lending_fUST_20241013
["ID","MTS","AMOUNT","RATE_DAILY","PERIOD"]
[340176337,1728771039441,-151.0,0.0003987,14]
[340176338,1728771039451,-151.0,0.0003987,14]
[340176339,1728771039461,-151.0,0.0003987,14]
[340176340,1728771039472,-151.0,0.0003987,14]
[340176341,1728771039481,-265.894119,0.0003987,14]
[340176342,1728771039490,-265.894119,0.0003987,14]
[340176343,1728771039501,-265.894119,0.0003987,14]
[340176344,1728771039510,-265.894119,0.0003987,14]
[340176345,1728771039521,-151.0,0.0003987,14]
[340176346,1728771039530,-160.576429,0.0003987,14]
[340176347,1728771039540,-151.0,0.0003987,14]
[340176348,1728771039551,-151.0,0.0003987,14]
[340176349,1728771039562,-151.0,0.0003987,14]
[340176350,1728771039575,-151.0,0.0003987,14]
[340176351,1728771039586,-151.0,0.0003987,14]
[340176352,1728771039595,-151.0,0.0003987,14]
[340176353,1728771039607,-641.006733,0.0003987,2]
[340176354,1728771039616,-641.006733,0.0003987,2]
[340176355,1728771039630,-641.006733,0.0003987,2]
[340176356,1728771039640,-641.006733,0.0003987,2]
[340176357,1728771039650,-16480.9275063,0.0003987,6]
[340176358,1728771039660,-151.0,0.0003988,14]
[340176359,1728771039670,-151.0,0.0003988,14]
[340176360,1728771039680,-151.0,0.0003988,14]
[340176361,1728771039691,-23927.70851715,0.0003988,2]
[340176362,1728771039701,-1000.0,0.00039889,120]
[340176363,1728771039712,-162.332912,0.0003995,14]
[340176364,1728771039722,-151.0,0.0003995,14]
[340176365,1728771039733,-151.0,0.0003995,14]
[340176366,1728771039745,-2284.850788,0.0003995,14]
[340176367,1728771039754,-151.0,0.0003995,14]
[340176368,1728771039765,-2284.850788,0.0003995,14]
[340176369,1728771039775,-82404.6375317,0.00039951,6]
[340176370,1728771039785,-151.0,0.00039961,14]
[340176371,1728771039795,-151.0,0.00039961,14]
[340176372,1728771039804,-151.0,0.00039961,14]
[340176373,1728771039815,-151.0,0.00039961,14]
[340176374,1728771039827,-163.22775,0.00039961,14]
[340176375,1728771039837,-265.894119,0.00039961,14]
[340176376,1728771039848,-265.894119,0.00039961,14]
[340176377,1728771039858,-265.894119,0.00039961,14]
[340176378,1728771039867,-265.894119,0.00039961,14]
[340176379,1728771039877,-151.0,0.00039961,14]
[340176380,1728771039886,-151.0,0.00039961,14]
[340176381,1728771039896,-151.0,0.00039961,14]
[340176382,1728771039905,-151.0,0.00039961,14]
[340176383,1728771039915,-285.324101,0.00039961,14]
[340176384,1728771039925,-641.006733,0.00039961,2]
[340176385,1728771039934,-641.006733,0.00039961,2]
[340176386,1728771039944,-641.006733,0.00039961,2]
[340176387,1728771039954,-641.006733,0.00039961,2]
[340176388,1728771039965,-500.0,0.00039963,120]
[340176389,1728771039974,-500.0,0.00039963,120]
[340176390,1728771039984,-537.65,0.00039963,120]
[340176391,1728771039993,-500.0,0.00039963,120]
[340176392,1728771040003,-500.0,0.00039963,120]
[340176393,1728771040013,-500.0,0.00039963,120]
[340176394,1728771040022,-500.0,0.00039963,120]
[340176395,1728771040032,-500.0,0.00039963,120]
[340176396,1728771040041,-500.0,0.00039963,120]
[340176398,1728771040054,-500.0,0.00039963,120]
[340176400,1728771040063,-403.23,0.00039963,120]
[340176402,1728771040074,-151.0,0.0003997,14]
[340176404,1728771040083,-151.0,0.0003997,14]
[340176406,1728771040094,-151.0,0.0003997,14]
[340176408,1728771040103,-422.164993,0.0003997,14]
[340176410,1728771040113,-422.164993,0.0003997,14]
[340176413,1728771040213,-151.0,0.0003997,14]
[340176414,1728771040223,-152.992245,0.0003997,3]
[340176415,1728771040233,-151.0,0.0003997,14]
[340176416,1728771040242,-151.0,0.0003997,14]
[340176417,1728771040252,-151.0,0.0003997,14]
[340176418,1728771040262,-273.474558,0.0003997,14]
[340176419,1728771040271,-265.894119,0.0003997,14]
[340176420,1728771040281,-265.894119,0.0003997,14]
[340176421,1728771040292,-151.0,0.0003997,14]
[340176422,1728771040302,-151.0,0.0003997,14]
[340176423,1728771040312,-641.006733,0.0003997,2]
[340176424,1728771040321,-641.006733,0.0003997,2]
[340176425,1728771040331,-16480.9275063,0.0003999,6]
[340176426,1728771040343,-1183.868,0.0004,120]
[340176427,1728771040352,-1000.0,0.0004,30]
[340176428,1728771040362,-1000.0,0.0004,30]
[340176429,1728771040372,-1000.0,0.0004,30]
[340176430,1728771040382,-1000.0,0.0004,30]
[340176431,1728771040392,-1000.0,0.0004,30]
[340176432,1728771040402,-1000.0,0.0004,30]
[340176433,1728771040412,-242.0,0.0004,30]
[340176434,1728771040422,-1000.0,0.0004,30]
[340176435,1728771040431,-1000.0,0.0004,30]
[340176436,1728771040441,-1000.0,0.0004,30]
[340176437,1728771040453,-1000.0,0.0004,30]
[340176438,1728771040463,-743.0,0.0004,30]
[340176439,1728771040473,-344.322219,0.0004,2]
[340176440,1728771040484,-1000.0,0.00040163,120]
[340176441,1728771040496,-151.0,0.00040298,14]
[340176442,1728771040506,-161.60378812,0.00040347,30]
[340176443,1728771040516,-152.833089,0.000404,14]
[340176444,1728771040526,-422.164993,0.000404,14]
[340176445,1728771040536,-422.164993,0.000404,14]
[340176446,1728771040546,-1000.0,0.00040437,120]
[340176447,1728771040555,-151.0,0.0004046,14]
[340176448,1728771040564,-265.894119,0.0004046,14]
[340176449,1728771040574,-265.894119,0.0004046,14]
[340176450,1728771040584,-151.0,0.0004046,14]
[340176451,1728771040595,-151.0,0.0004046,14]
[340176453,1728771040606,-641.006733,0.0004046,2]
[340176455,1728771040620,-641.006733,0.0004046,2]
[340176458,1728771040632,-6702.9630576,0.0004047,3]
[340176459,1728771040642,-151.0,0.0004047,14]
[340176461,1728771040652,-151.0,0.0004047,14]
[340176463,1728771040663,-176.594509,0.0004047,14]
[340176465,1728771040675,-1000.0,0.000405,2]
[340176467,1728771040684,-154.910349,0.000405,14]
[340176468,1728771040696,-6538.656,0.00040545,2]
[340176470,1728771040707,-990.65,0.00040569,2]
[340176471,1728771040717,-990.65,0.00040569,2]
[340176472,1728771040727,-990.65,0.00040569,2]
[340176473,1728771040738,-990.65,0.00040569,2]
[340176474,1728771040748,-990.65,0.00040569,2]
[340176475,1728771040758,-990.65,0.00040569,2]
[340176476,1728771040767,-990.65,0.00040569,2]
[340176477,1728771040780,-990.65,0.00040569,2]
[340176478,1728771040790,-990.65,0.00040569,2]
[340176479,1728771040800,-990.65,0.00040569,2]
[340176480,1728771040809,-111879.22532697,0.0004057,2]
[340176481,1728771040818,-2284.850788,0.0004057,14]
[340176482,1728771040828,-151.0,0.0004057,14]
[340176483,1728771040837,-2284.850788,0.0004057,14]
[340176484,1728771040847,-500.0,0.00040573,5]
[340176485,1728771040859,-500.0,0.00040573,5]
[340176486,1728771040868,-629.16461442,0.00040573,5]
[340176487,1728771040878,-500.0,0.00040573,5]
[340176488,1728771040888,-151.0,0.00040586,14]
[340176489,1728771040899,-422.164993,0.00040586,14]
[340176490,1728771040908,-422.164993,0.00040586,14]
[340176491,1728771040917,-151.0,0.00040586,14]
[340176492,1728771040928,-151.0,0.00040586,14]
[340176493,1728771040938,-151.0,0.00040596,7]
[340176494,1728771040948,-153.65714,0.00040596,7]
[340176495,1728771040958,-16480.9275063,0.00040596,6]
[340176496,1728771040967,-37730.59891204,0.00040606,2]
[340176497,1728771040976,-1776.15378801,0.00040606,2]
[340176498,1728771040985,-30117.19640591,0.00040607,2]
[340176499,1728771040994,-2284.850788,0.00040607,14]
[340176500,1728771041004,-151.0,0.00040607,14]
[340176501,1728771041014,-2284.850788,0.00040607,14]
[340176502,1728771041024,-560.0,0.00040666,30]
[340176503,1728771041033,-150.0,0.00040673,5]
[340176504,1728771041043,-150.0,0.00040673,5]
[340176505,1728771041053,-150.112233,0.000407,8]
[340176506,1728771041063,-1000.0,0.00040711,120]
[340176507,1728771041074,-157.0,0.0004078,120]
[340176508,1728771041084,-150.112233,0.000408,7]
[340176509,1728771041095,-150.0,0.000408,2]
[340176510,1728771041106,-16480.9275063,0.00040808,6]
[340176511,1728771041116,-200.0,0.0004081,43]
[340176512,1728771041130,-30000.0,0.00040818,2]
[340176513,1728771041140,-151.0,0.00040818,14]
[340176514,1728771041150,-422.164993,0.00040818,14]
[340176515,1728771041160,-422.164993,0.00040818,14]
[340176516,1728771041169,-182.596724,0.00040818,14]
[340176517,1728771041180,-151.0,0.00040818,14]
[340176518,1728771041190,-265.894119,0.00040818,14]
[340176519,1728771041200,-265.894119,0.00040818,14]
[340176520,1728771041210,-151.0,0.00040818,14]
[340176521,1728771041222,-641.006733,0.00040818,2]
[340176522,1728771041232,-641.006733,0.00040818,2]
[340176523,1728771041242,-1000.0,0.00040842,5]
[340176524,1728771041252,-1000.0,0.00040842,5]
[340176525,1728771041262,-1000.0,0.00040842,5]
[340176526,1728771041272,-151.0,0.00040855,14]
[340176527,1728771041282,-207.02130589,0.00040895,2]
[340176528,1728771041292,-150.112233,0.000409,9]
[340176529,1728771041303,-3000.0,0.000409,45]
[340176530,1728771041314,-3000.0,0.0004091,45]
[340176531,1728771041324,-3000.0,0.0004092,45]
[340176532,1728771041334,-151.0,0.00040921,14]
[340176533,1728771041345,-151.0,0.00040921,14]
[340176534,1728771041357,-3000.0,0.0004093,45]
[340176535,1728771041368,-160.49217476,0.00040936,7]
[340176536,1728771041378,-3000.0,0.0004094,45]
[340176537,1728771041389,-2284.850788,0.0004094,14]
[340176538,1728771041399,-151.0,0.0004094,14]
[340176539,1728771041409,-2284.850788,0.0004094,14]
[340176540,1728771041420,-16480.9275063,0.0004094,6]
[340176541,1728771041431,-3000.0,0.0004095,45]
[340176542,1728771041443,-1000.0,0.0004096,5]
[340176543,1728771041454,-3000.0,0.0004096,45]
[340176544,1728771041465,-256.592136,0.0004097,14]
[340176545,1728771041477,-6702.9630576,0.0004097,3]
[340176546,1728771041488,-3000.0,0.0004097,45]
[340176547,1728771041499,-151.0,0.0004098,14]
[340176548,1728771041510,-422.164993,0.0004098,14]
[340176549,1728771041522,-422.164993,0.0004098,14]
[340176550,1728771041535,-3000.0,0.0004098,45]
[340176551,1728771041545,-151.0,0.0004098,14]
[340176552,1728771041556,-1000.0,0.00040985,120]
[340176553,1728771041568,-1749.46088269,0.0004099,45]
[340176554,1728771041584,-1250.53911731,0.0004099,45]
[340176555,1728771041594,-16480.9275063,0.0004099,6]
[340176556,1728771041604,-150.61319418,0.00040992,4]
[340176557,1728771041617,-199.90786086,0.00040992,7]
[340176558,1728771041629,-500.0,0.00040992,7]
[340176559,1728771041640,-150.0,0.00040992,7]
[340176560,1728771041652,-158.2848459,0.00040992,7]
[340176561,1728771041662,-150.0,0.00040992,7]
[340176562,1728771041674,-150.0,0.00040992,7]
[340176563,1728771041685,-500.0,0.00040992,7]
[340176564,1728771041695,-11656.65,0.00041,30]
[340176565,1728771041706,-150.112233,0.00041,6]
[340176566,1728771041718,-160.0,0.00041,14]
[340176567,1728771041730,-335.0,0.00041,14]
[340176568,1728771041741,-3000.0,0.00041,45]
[340176569,1728771041751,-265.894119,0.00041,14]
[340176570,1728771041761,-265.894119,0.00041,14]
[340176571,1728771041770,-151.0,0.00041,14]
[340176572,1728771041780,-641.006733,0.00041,2]
[340176573,1728771041789,-553.34726053,0.00041,2]
[340176574,1728771041802,-87.65947247,0.00041,2]
[340176575,1728771041811,-615.44818142,0.0004101,45]
[340176576,1728771041980,-500.0,0.00040992,7]
[340176577,1728771041990,-3390.73580358,0.0004101,45]
[340176578,1728771042001,-422.164993,0.00041016,14]
[340176579,1728771042011,-422.164993,0.00041016,14]
[340176580,1728771042094,-422.164993,0.00041016,14]
[340176581,1728771042104,-422.164993,0.00041016,14]
[340176582,1728771042114,-422.164993,0.00041016,14]
[340176583,1728771042123,-422.164993,0.00041016,14]
[340176584,1728771042133,-151.0,0.00041016,14]
[340176585,1728771042142,-273.160176,0.00041016,14]
[340176586,1728771042151,-2284.850788,0.00041016,14]
[340176587,1728771042162,-151.0,0.00041016,14]
[340176588,1728771042173,-2284.850788,0.00041016,14]
[340176589,1728771042184,-16189.37088561,0.00041017,20]
[340176590,1728771042197,-718237.408591,0.00041017,20]
[340176601,1728771043505,-1953.84462238,0.00041017,20]
[340176602,1728771043638,168.831854,0.00036199,2]
[340176604,1728771043687,168.831854,0.00036356,2]
[340176605,1728771043724,168.831854,0.00036513,2]
[340176606,1728771043765,168.831854,0.0003667,2]
[340176607,1728771043807,168.831854,0.00036828,2]
[340176608,1728771044063,-168.831854,0.00036985,2]
[340176609,1728771044073,-168.831854,0.00037142,2]
[340176610,1728771044083,-168.831854,0.00037299,2]
[340176611,1728771044094,-207.02130588,0.00040895,2]
[340176612,1728771044104,-17341.11562583,0.00041017,20]
[340176616,1728771046753,-168.831854,0.00037456,2]
[340176617,1728771046762,-168.831854,0.00037613,2]
[340176618,1728771046771,-168.831854,0.00037771,2]
[340176619,1728771046780,-168.831854,0.00037928,2]
[340176620,1728771046789,-168.831854,0.00038085,2]
[340176621,1728771046798,-314.0,0.00041,14]
[340176622,1728771046807,-161.0,0.00041,14]
[340176623,1728771046816,-977.84,0.00041007,10]
[340176624,1728771046826,-14687.71233298,0.00041017,20]
[340176625,1728771046985,-16.74847467,0.00041017,20]
[340176635,1728771930169,-166.666666,0.00031695,2]
[340176636,1728771930195,-400.0,0.00031984,2]
[340176637,1728771930222,-70.15976247,0.00031984,2]
[340176638,1728771939108,-329.84023753,0.00031984,2]
[340176639,1728771939131,-5531.11937031,0.00031985,2]
[340176640,1728772008092,-3190.66040811,0.00030363,2]
[340176641,1728772041149,-446.3337943,0.00029343,4]
[340176642,1728772041172,-400.0,0.00030362,2]
[340176643,1728772041196,-400.0,0.00030362,2]
[340176644,1728772041217,-2408.33161878,0.00030363,2]
[340176645,1728772051106,-3867.12800621,0.00030363,2]
[340176646,1728772051127,-727.0675409,0.00030531,2]
[340176647,1728772051238,-9495.11781334,0.00031985,2]
[340176648,1728772075608,-4979.0,0.00025,120]
[340176651,1728772119290,1372.67431039,0.00014,4]
[340176652,1728772122986,29637.82851844,0.00014,2]
[340176653,1728772123975,294533.0,0.0001999,2]
[340176654,1728772124594,800.74902541,0.000212,30]
[340176655,1728772125081,10755.74814576,0.00022,2]
[340176656,1728772125110,14734.99634887,0.00022,2]
[340176658,1728772126733,4334.37230715,0.00015,2]
[340176659,1728772135297,-763.42,0.0002499,10]
[340176660,1728772138352,-51.45,0.0002499,10]
[340176661,1728772138376,-824.06,0.0002499,10]
[340176662,1728772145016,-300.0,0.0002499,3]
[340176663,1728772145577,-300.0,0.0002499,3]
[340176664,1728772147212,-163.42,0.0002499,3]
[340176665,1728772147240,-51.45,0.0002499,10]
[340176666,1728772147274,-300.0,0.00024999,2]
[340176667,1728772147296,-300.0,0.00024999,2]
[340176668,1728772147317,-11587.47385628,0.00025,2]
[340176669,1728772147818,248.55,0.0002499,10]
[340176670,1728772149290,-481.04,0.0002499,10]
[340176671,1728772149317,-20986.28362717,0.00025,2]
[340176672,1728772153178,-145930.66231958,0.00025,2]
[340176673,1728772153199,-6765.92848798,0.00026,120]
[340176674,1728772153224,-420.0,0.00027082,2]
[340176675,1728772153248,-420.0,0.00027499,2]
[340176676,1728772153269,-587.0,0.00029339,2]
[340176677,1728772153293,-587.0,0.00030249,2]
[340176678,1728772153317,-166.666666,0.0003107,2]
[340176679,1728772153340,-2910.0,0.0003175,2]
[340176680,1728772153363,-823.0,0.00031784,2]
[340176681,1728772153387,-9873.76281635,0.00031985,2]
[340176682,1728772153409,-3000.0,0.00032115,2]
[340176683,1728772153433,-166.666666,0.00032128,2]
[340176685,1728772153456,-436.67292,0.00032177,2]
[340176687,1728772153479,-505.63140856,0.00032373,5]
[340176688,1728772153503,-250.0,0.00032553,2]
[340176689,1728772153524,-1325.7469724,0.00032631,2]
[340176690,1728772153548,-250.0,0.00032642,2]
[340176692,1728772153571,-500.0,0.0003272,5]
[340176693,1728772153595,-250.0,0.00032731,2]
[340176694,1728772153629,-500.0,0.00032767,5]
[340176695,1728772153652,-500.0,0.00032786,5]
[340176696,1728772153676,-500.0,0.00032786,5]
[340176697,1728772153699,-166.292751,0.00032789,2]
[340176698,1728772153724,-183.290002,0.00032811,2]
[340176699,1728772153748,-183.290002,0.00032819,2]
[340176700,1728772153773,-250.0,0.00032821,2]
[340176701,1728772153798,-183.290002,0.00032828,2]
[340176702,1728772153822,-183.290002,0.00032837,2]
[340176703,1728772153846,-493.90131768,0.0003284,5]
[340176704,1728772153977,-183.290002,0.00032845,2]
[340176705,1728772154000,-157.0,0.0003285,2]
[340176706,1728772154026,-183.290002,0.00032854,2]
[340176707,1728772154054,-183.290002,0.00032863,2]
[340176708,1728772154076,-183.290002,0.00032871,2]
[340176709,1728772154099,-183.290002,0.0003288,2]
[340176710,1728772154123,-183.290002,0.00032888,2]
[340176711,1728772154149,-183.290002,0.00032897,2]
[340176712,1728772154173,-183.290002,0.00032906,2]
[340176713,1728772154198,-250.0,0.0003291,2]
[340176714,1728772154221,-183.290002,0.00032914,2]
[340176715,1728772154243,-183.290002,0.00032923,2]
[340176716,1728772154267,-183.290002,0.00032932,2]
[340176717,1728772154290,-183.290002,0.0003294,2]
[340176718,1728772154315,-183.290002,0.00032949,2]
[340176719,1728772154339,-183.290002,0.00032957,2]
[340176720,1728772154363,-183.290002,0.00032966,2]
[340176721,1728772154387,-183.290002,0.00032975,2]
[340176722,1728772154411,-250.0,0.00032999,2]
[340176723,1728772154433,-30016.84490306,0.00033,2]
[340176724,1728772154459,-250.0,0.00033088,2]
[340176725,1728772154484,-250.0,0.00033178,2]
[340176726,1728772154506,-166.666666,0.00033187,2]
[340176727,1728772154529,-250.0,0.00033267,2]
[340176728,1728772154554,-823.0,0.00033274,2]
[340176729,1728772154581,-250.0,0.00033356,2]
[340176730,1728772154606,-250.0,0.00033446,2]
[340176731,1728772154630,-250.0,0.00033535,2]
[340176732,1728772154653,-250.0,0.00033624,2]
[340176733,1728772154677,-180.673,0.00033634,36]
[340176734,1728772154701,-250.0,0.00033713,2]
[340176735,1728772154725,-250.0,0.00033803,2]
[340176736,1728772154749,-250.0,0.00033892,2]
[340176737,1728772154774,-250.0,0.00033981,2]
[340176738,1728772154798,-250.0,0.00034071,2]
[340176739,1728772154821,-500.0,0.0003409,5]
[340176740,1728772154844,-500.0,0.00034137,5]
[340176741,1728772154870,-250.0,0.0003416,2]
[340176742,1728772157144,-166.666666,0.00034246,2]
[340176743,1728772157170,-250.0,0.00034249,2]
[340176744,1728772157194,-1152.0,0.00034433,2]
[340176745,1728772157222,-302.45563732,0.00035,2]
[340176746,1728772157246,-302.42545213,0.00035,2]
[340176747,1728772157271,-5384.58287078,0.0003525,2]
[340176748,1728772157295,-146.78240603,0.00035305,2]
[340176750,1728772163115,-19.88425997,0.00035305,2]
[340176751,1728772163140,-302.45563732,0.0003535,2]
[340176752,1728772163163,-302.42545213,0.0003535,2]
[340176753,1728772163187,-500.0,0.00035699,15]
[340176754,1728772163213,-500.0,0.00035699,15]
[340176755,1728772163238,-630.0,0.00035699,15]
[340176756,1728772163261,-500.0,0.00035699,15]
[340176757,1728772163283,-245.82352328,0.00035699,15]
[340176758,1728772163493,500.0,0.00032973,5]
[340176759,1728772163521,500.0,0.00034342,5]
[340176760,1728772169142,-254.17647672,0.00035699,15]
[340176761,1728772169164,-500.0,0.00035699,15]
[340176762,1728772169190,-500.0,0.00035699,15]
[340176763,1728772169213,-500.0,0.00035699,15]
[340176764,1728772169241,-500.0,0.00035699,15]
[340176765,1728772169265,-500.0,0.00035699,15]
[340176766,1728772169287,-302.45563732,0.000357,2]
[340176767,1728772169309,-302.42545213,0.000357,2]
[340176768,1728772169331,-2630.97144416,0.00036,30]
[340176769,1728772169355,-250.0,0.00036032,2]
[340176770,1728772169375,-302.45563732,0.0003605,2]
[340176771,1728772169403,-250.0,0.00036131,2]
[340176772,1728772169429,-250.0,0.0003623,2]
[340176773,1728772169452,-250.0,0.00036329,2]
[340176774,1728772169477,-302.45563732,0.000364,2]
[340176775,1728772169501,-250.0,0.00036427,2]
[340176776,1728772170011,190.52288227,0.00035599,2]
[340176777,1728772173135,500.0,0.00032973,5]
[340176778,1728772173188,1000.0,0.00034342,5]
[340176779,1728772173241,458.39881978,0.00036346,5]
[340176780,1728772176897,500.0,0.00032973,5]
[340176781,1728772176954,500.0,0.00034342,5]
[340176782,1728772178600,1000.0,0.00034342,5]
[340176783,1728772178645,205.11492759,0.00032973,5]
[340176784,1728772178667,294.88507241,0.00032973,5]
[340176789,1728772187422,500.0,0.00032973,5]
[340176790,1728772187466,1000.0,0.00034342,5]
[340176791,1728772190757,500.0,0.00032973,5]
[340176792,1728772190802,1000.0,0.00034342,5]
[340176794,1728772203370,500.0,0.00024973,2]
[340176798,1728772205986,428.17955726,0.00032973,5]
[340176799,1728772207204,618.77922959,0.00025439,2]
[340176840,1728772231772,-500.0,0.00035699,15]
[340176842,1728772231788,-500.0,0.00035699,15]
[340176845,1728772231803,-500.0,0.00035699,15]
[340176847,1728772231815,-500.0,0.00035699,15]
[340176851,1728772231829,-500.0,0.00035699,15]
[340176855,1728772231844,-500.0,0.00035699,15]
[340176859,1728772231857,-500.0,0.00035699,15]
[340176863,1728772231871,-500.0,0.00035699,15]
[340176867,1728772231883,-500.0,0.00035699,15]
[340176870,1728772231895,-500.0,0.00035699,15]
[340176873,1728772231909,-500.0,0.00035699,15]
[340176876,1728772231922,-500.0,0.00035699,15]
[340176878,1728772231935,-611.23000046,0.00035699,15]
[340176880,1728772231947,-400.0,0.00036345,2]
[340176883,1728772231961,-400.0,0.00036345,2]
[340176885,1728772231973,-1500.0,0.00036346,5]
[340176887,1728772231986,-216.50194078,0.00036346,5]
[340176890,1728772231998,-1500.0,0.00036346,5]
[340176892,1728772232008,-250.0,0.00036526,2]
[340176894,1728772232022,-250.0,0.00036625,2]
[340176897,1728772232036,-190.52288226,0.0003665,2]
[340176899,1728772232051,-250.0,0.00036724,2]
[340176902,1728772232064,-250.0,0.00036823,2]
[340176904,1728772232075,-157.0,0.0003688,7]
[340176906,1728772232087,-250.0,0.00036922,2]
[340176909,1728772232103,-250.0,0.0003702,2]
[340176911,1728772232115,-250.0,0.00037119,2]
[340176913,1728772232128,-250.0,0.00037218,2]
[340176915,1728772232139,-250.0,0.00037317,2]
[340176917,1728772232151,-500.0,0.00037386,5]
[340176919,1728772232162,-250.0,0.00037416,2]
[340176921,1728772232174,-193.60700828,0.00037446,2]
[340176924,1728772232186,-205.80570709,0.00037446,2]
[340176926,1728772232198,-250.0,0.00037514,2]
[340176928,1728772232209,-250.0,0.00037613,2]
[340176929,1728772232221,-500.0,0.00037686,5]
[340176931,1728772232233,-250.0,0.00037712,2]
[340176933,1728772232245,-250.0,0.00037811,2]
[340176935,1728772232256,-250.0,0.0003791,2]
[340176937,1728772232268,-607.99,0.0003799,10]
[340176939,1728772232281,-2141.59,0.0003799,10]
[340176940,1728772232294,-990.65,0.00037999,2]
[340176942,1728772232306,-990.65,0.00037999,2]
[340176943,1728772232318,-990.65,0.00037999,2]
[340176944,1728772232330,-990.65,0.00037999,2]
[340176945,1728772232342,-990.65,0.00037999,2]
[340176946,1728772232354,-990.65,0.00037999,2]
[340176947,1728772232366,-990.65,0.00037999,2]
[340176948,1728772232379,-990.65,0.00037999,2]
[340176949,1728772232389,-990.65,0.00037999,2]
[340176950,1728772232482,-990.65,0.00037999,2]
[340176951,1728772232522,-649.13077539,0.00038,14]
[340176952,1728772232532,-9895.53866108,0.00038,120]
[340176953,1728772232550,-4363.70623826,0.00038,120]
[340176960,1728772238718,-570.0,0.00037999,15]
[340176961,1728772238728,-623.47000005,0.00037999,15]
[340176962,1728772238739,-160067.35510066,0.00038,120]
[340176963,1728772238753,-362.257421,0.00038,14]
[340176964,1728772238765,-1931.77,0.00038356,2]
[340176965,1728772238774,-500.0,0.00038529,5]
[340176966,1728772238784,-1931.77,0.0003863,2]
[340176967,1728772238793,-2000.0,0.00038687,5]
[340176968,1728772238803,-2000.0,0.00038687,5]
[340176969,1728772238815,-1931.77,0.00038904,2]
[340176970,1728772238826,-560.0,0.00038915,5]
[340176971,1728772238838,-157.0,0.0003893,5]
[340176972,1728772238848,-6702.9630576,0.0003895,2]
[340176973,1728772238859,-1623.94270924,0.00038956,2]
[340176974,1728772238868,-500.0,0.00038973,5]
[340176975,1728772238878,-26074.19384079,0.00039,2]
[340176976,1728772238888,-1000.0,0.00039056,5]
[340176977,1728772238898,-1931.77,0.00039178,2]
[340176978,1728772238908,-1623.94270922,0.00039395,2]
[340176979,1728772238918,-68470.743539,0.0003944,5]
[340176980,1728772238930,-3296.18550123,0.0003944,5]
[340176981,1728772238942,-6702.9630576,0.0003945,2]
[340176982,1728772238953,-1931.77,0.00039452,2]
[340176983,1728772238962,-150.0,0.00039473,5]
[340176984,1728772238972,-150.61275308,0.00039473,5]
[340176985,1728772238981,-150.0,0.00039473,5]
[340176986,1728772238990,-1931.77,0.00039726,2]
[340176987,1728772239001,-1623.94270922,0.00039834,2]
[340176988,1728772239011,-1000.0,0.00039898,5]
[340176989,1728772239020,-6702.9630576,0.0003995,2]
[340176990,1728772239031,-560.0,0.00039979,30]
[340176991,1728772239041,-1931.77,0.0004,2]
[340176992,1728772239052,-9386.1453699,0.0004,10]
[340176993,1728772239062,-360.360619,0.0004,2]
[340176994,1728772239072,-500.0,0.00040017,120]
[340176995,1728772239083,-500.0,0.00040017,120]
[340176996,1728772239093,-537.65,0.00040017,120]
[340176997,1728772239103,-500.0,0.00040017,120]
[340176998,1728772239113,-500.0,0.00040017,120]